bitfinex/quotes_BTCUSD_20240906
["timestamp","ask_amount","ask_price","bid_price","bid_amount"]
[1725640787533,2.22160391,54160.0,54159.0,0.00264]
[1725640787813,2.22160391,54160.0,54144.0,0.00164]
[1725640787814,0.184689,54145.0,54144.0,0.00164]
[1725640788014,1.98084982,54145.0,54144.0,0.00164]
[1725640788290,2.14447185,54145.0,54144.0,0.00164]
[1725640788525,2.53684985,54145.0,54144.0,0.00164]
[1725640788745,2.08084982,54145.0,54144.0,0.00164]
[1725640789178,1.71147182,54145.0,54144.0,0.00164]
[1725640789395,1.71247182,54145.0,54144.0,0.00164]
[1725640789628,2.08184982,54145.0,54144.0,0.00164]
[1725640789867,2.47629032,54145.0,54144.0,0.00164]
[1725640790097,2.19353435,54145.0,54144.0,0.00164]
[1725640790565,2.56291235,54145.0,54144.0,0.00164]
[1725640790787,1.293036,54136.0,54135.0,0.4726]
[1725640791033,1.61168482,54136.0,54135.0,0.4726]
[1725640791282,2.08112382,54136.0,54135.0,0.4826]
[1725640792393,1.398036,54136.0,54135.0,0.4826]
[1725640792602,1.393036,54136.0,54135.0,0.4846]
[1725640792820,1.397036,54136.0,54135.0,0.4846]
[1725640793277,1.397036,54136.0,54135.0,0.4946]
[1725640793554,1.397036,54136.0,54135.0,0.4926]
[1725640793555,1.42272702,54136.0,54135.0,0.4926]
[1725640793768,1.42272702,54136.0,54135.0,0.5026]
[1725640793983,1.42672702,54136.0,54135.0,0.5026]
[1725640794496,1.79616602,54136.0,54135.0,0.4726]
[1725640794789,1.78816602,54136.0,54135.0,0.4726]
[1725640795001,1.79716602,54136.0,54135.0,0.4726]
[1725640795219,1.79616602,54136.0,54135.0,0.4726]
[1725640795443,1.79616602,54136.0,54135.0,0.4826]
[1725640795666,1.80116602,54136.0,54135.0,0.4826]
[1725640795855,1.62044702,54136.0,54135.0,0.4626]
[1725640796111,1.80516602,54136.0,54135.0,0.4626]
[1725640796926,1.79216602,54136.0,54135.0,0.4626]
[1725640797138,1.79716602,54136.0,54135.0,0.4626]
[1725640797567,1.79216602,54136.0,54135.0,0.4626]
[1725640797780,1.42372702,54136.0,54135.0,0.4826]
[1725640797998,1.42372702,54136.0,54135.0,0.4726]
[1725640797999,1.41972702,54136.0,54135.0,0.4726]
[1725640798199,1.42072702,54136.0,54135.0,0.4726]
[1725640798412,1.42072702,54136.0,54135.0,0.4626]
[1725640798826,1.41872702,54136.0,54135.0,0.4626]
[1725640799031,1.41872702,54136.0,54135.0,0.4826]
[1725640799240,1.41872702,54136.0,54135.0,0.4726]
[1725640799657,1.41872702,54136.0,54135.0,0.2761]
[1725640799874,0.92365,54133.0,54132.0,0.2782]
[1725640800090,1.71175882,54133.0,54132.0,0.2782]
[1725640800309,2.08121882,54133.0,54132.0,0.2682]
[1725640800528,0.554241,54128.0,54127.0,0.2673]
[1725640800735,1.61187782,54128.0,54127.0,0.2773]
[1725640800948,1.61187782,54128.0,54125.0,0.19993]
[1725640800949,1.293278,54126.0,54125.0,0.19993]
[1725640801154,1.662786,54126.0,54125.0,0.19993]
[1725640801367,1.762786,54126.0,54125.0,0.19993]
[1725640802190,1.393278,54126.0,54125.0,0.19993]
[1725640802400,1.398278,54126.0,54125.0,0.19993]
[1725640802816,1.41829947,54126.0,54125.0,0.19993]
[1725640804127,1.41829947,54126.0,54125.0,0.201564]
[1725640804357,1.42629947,54126.0,54125.0,0.201564]
[1725640804821,1.41829947,54126.0,54125.0,0.201564]
[1725640805031,1.41829947,54126.0,54125.0,0.221564]
[1725640805235,1.41829947,54126.0,54125.0,0.201564]
[1725640805236,1.43429947,54126.0,54125.0,0.201564]
[1725640805656,1.41829947,54126.0,54125.0,0.201564]
[1725640806121,1.42829947,54126.0,54125.0,0.201564]
[1725640806758,1.42829947,54126.0,54125.0,0.478264]
[1725640806968,1.42929947,54126.0,54125.0,0.478264]
[1725640807384,1.42829947,54126.0,54125.0,0.478264]
[1725640807609,1.45724442,54126.0,54125.0,0.478264]
[1725640808039,1.44724442,54126.0,54125.0,0.478264]
[1725640808456,1.81675242,54126.0,54125.0,0.011764]
[1725640808722,2.18626042,54126.0,54125.0,0.001764]
[1725640808926,2.28080566,54126.0,54125.0,0.001764]
[1725640809350,2.29080566,54126.0,54125.0,0.001764]
[1725640809563,2.26186071,54126.0,54125.0,0.001764]
[1725640809777,2.26186071,54126.0,54121.0,0.00164]
[1725640809778,2.032442,54122.0,54121.0,0.00164]
[1725640809989,0.554394,54113.0,54112.0,0.1899]
[1725640810217,0.554394,54113.0,54110.0,0.2545]
[1725640810218,0.554415,54111.0,54110.0,0.2545]
[1725640810432,0.924092,54107.0,54106.0,0.2019]
[1725640810660,0.184818,54107.0,54106.0,0.4764]
[1725640810884,0.1,54112.0,54099.0,0.03695]
[1725640810885,0.1,54112.0,54111.0,0.4764]
[1725640811093,0.52398784,54126.0,54120.0,0.4564]
[1725640811094,0.554318,54121.0,54120.0,0.4564]
[1725640811310,0.94903835,54121.0,54120.0,0.4764]
[1725640811531,0.369521,54125.0,54121.0,0.032]
[1725640811737,0.369521,54125.0,54124.0,0.2989]
[1725640811738,0.554278,54125.0,54124.0,0.2989]
[1725640812386,0.369482,54130.0,54128.0,0.02]
[1725640812387,0.184743,54129.0,54128.0,0.02]
[1725640812636,0.923717,54129.0,54128.0,0.02]
[1725640813053,1.293204,54129.0,54128.0,0.2973]
[1725640813274,1.293204,54129.0,54128.0,0.2993]
[1725640813485,0.923717,54129.0,54128.0,0.2993]
[1725640813698,0.02612714,54130.0,54129.0,0.032]
[1725640813961,0.68809082,54136.0,54130.0,0.2127]
[1725640813962,0.369442,54136.0,54130.0,0.2127]
[1725640814158,0.87295718,54149.0,54143.0,0.002]
[1725640814379,0.87295718,54149.0,54143.0,0.012]
[1725640814380,0.0257089,54144.0,54143.0,0.012]
[1725640814605,0.0257089,54144.0,54143.0,0.032]
[1725640814606,0.184692,54144.0,54143.0,0.032]
[1725640814832,0.369361,54148.0,54147.0,0.01]
[1725640815047,0.369341,54151.0,54150.0,0.2985]
[1725640815048,0.184668,54151.0,54150.0,0.2985]
[1725640815334,0.31864882,54162.0,54135.0,0.31864882]
[1725640815335,0.554731,54160.0,54159.0,0.01]
[1725640815557,0.000817,54160.0,54159.0,0.4832]
[1725640815775,0.000817,54160.0,54159.0,0.4852]
[1725640815776,0.185455,54160.0,54159.0,0.4852]
[1725640815990,1.32931619,54160.0,54159.0,0.2665]
[1725640816196,1.32931619,54160.0,54154.0,0.4911]
[1725640816197,1.292585,54155.0,54154.0,0.4911]
[1725640816406,1.292585,54155.0,54154.0,0.4711]
[1725640816624,1.292585,54155.0,54154.0,0.4911]
[1725640816832,0.923275,54155.0,54154.0,0.4911]
[1725640817051,0.923275,54155.0,54154.0,0.4931]
[1725640817260,0.553965,54155.0,54154.0,0.4931]
[1725640817476,0.184655,54155.0,54154.0,0.4931]
[1725640817682,0.1,54155.0,54154.0,0.4931]
[1725640817895,0.284655,54155.0,54154.0,0.4931]
[1725640818318,1.023275,54155.0,54154.0,0.4711]
[1725640818550,1.42451393,54155.0,54154.0,0.1906]
[1725640818770,1.42451393,54155.0,54150.0,0.02]
[1725640818771,0.369344,54150.0,54146.0,0.1879]
[1725640818977,1.24205882,54147.0,54146.0,0.1879]
[1725640819233,0.923427,54146.0,54145.0,0.2766]
[1725640819448,1.392798,54146.0,54145.0,0.2666]
[1725640819680,1.392798,54146.0,54141.0,0.01]
[1725640819681,0.369398,54142.0,54141.0,0.2616]
[1725640819918,0.369392,54143.0,54137.0,0.4583]
[1725640819919,0.923565,54138.0,54137.0,0.4583]
[1725640820137,0.554251,54127.0,54126.0,0.2113]
[1725640820348,1.61190182,54127.0,54126.0,0.1913]
[1725640820572,1.293278,54126.0,54125.0,0.021634]
[1725640820791,1.293278,54126.0,54125.0,0.011634]
[1725640820792,1.393278,54126.0,54125.0,0.011634]
[1725640821022,1.79172977,54126.0,54125.0,0.001634]
[1725640821238,1.42222177,54126.0,54125.0,0.011634]
[1725640821447,1.393278,54126.0,54125.0,0.001634]
[1725640821657,1.762786,54126.0,54125.0,0.001634]
[1725640821866,1.78872413,54126.0,54125.0,0.001634]
[1725640822071,1.81172413,54126.0,54125.0,0.001634]
[1725640822314,1.80272413,54126.0,54125.0,0.001634]
[1725640822527,1.43321613,54126.0,54125.0,0.001634]
[1725640822741,1.41921613,54126.0,54125.0,0.001634]
[1725640822980,1.81172413,54126.0,54125.0,0.001634]
[1725640823406,1.82572413,54126.0,54125.0,0.001634]
[1725640824766,1.81172413,54126.0,54125.0,0.001634]
[1725640824996,1.81172413,54126.0,54114.0,0.01]
[1725640824997,0.369617,54110.0,54106.0,0.267]
[1725640825212,0.0793,54122.0,54106.0,0.267]
[1725640825213,1.24274082,54107.0,54106.0,0.267]
[1725640825439,1.24274082,54107.0,54104.0,0.00164]
[1725640825440,0.924127,54105.0,54104.0,0.00164]
[1725640825709,1.663429,54105.0,54104.0,0.00164]
[1725640825948,1.393778,54105.0,54104.0,0.01164]
[1725640826223,1.763429,54105.0,54104.0,0.01164]
[1725640826711,1.763429,54105.0,54104.0,0.00164]
[1725640827266,1.78906136,54105.0,54104.0,0.00164]
[1725640827761,1.81206136,54105.0,54104.0,0.00164]
[1725640828022,2.18171236,54105.0,54104.0,0.00164]
[1725640828742,2.19571236,54105.0,54104.0,0.00164]
[1725640829212,1.78906136,54105.0,54104.0,0.00164]
[1725640829441,1.80306136,54105.0,54104.0,0.00164]
[1725640830122,1.78906136,54105.0,54104.0,0.00164]
[1725640830334,1.88159013,54105.0,54104.0,0.00164]
[1725640830786,2.25124113,54105.0,54104.0,0.00164]
[1725640831685,2.25217411,54105.0,54104.0,0.00164]
[1725640832010,2.26317411,54105.0,54104.0,0.00164]
[1725640832249,2.25317411,54105.0,54104.0,0.00164]
[1725640832478,1.80499434,54105.0,54104.0,0.00164]
[1725640832932,1.79399434,54105.0,54104.0,0.00164]
[1725640833159,1.79399434,54105.0,54104.0,0.26104]
[1725640833389,1.80799434,54105.0,54104.0,0.26104]
[1725640834780,1.79399434,54105.0,54104.0,0.26104]
[1725640835012,1.80499434,54105.0,54104.0,0.00164]
[1725640835244,2.19776469,54105.0,54104.0,0.00164]
[1725640835472,2.30213712,54105.0,54104.0,0.00164]
[1725640835697,2.22283712,54105.0,54104.0,0.00164]
[1725640835927,2.22983712,54105.0,54104.0,0.00164]
[1725640836159,2.19364534,54105.0,54104.0,0.00164]
[1725640836385,2.37162841,54105.0,54104.0,0.00164]
[1725640836599,2.18664534,54105.0,54104.0,0.00164]
[1725640836836,2.19964534,54105.0,54104.0,0.00164]
[1725640837278,1.98238382,54095.0,54094.0,0.196]
[1725640837532,1.98238382,54095.0,54089.0,0.00164]
[1725640837533,1.294139,54090.0,54089.0,0.18194]
[1725640837792,1.98254182,54090.0,54089.0,0.00164]
[1725640838039,2.48980541,54090.0,54089.0,0.00164]
[1725640839292,2.48080541,54090.0,54089.0,0.00164]
[1725640839834,2.48080541,54090.0,54089.0,0.26234]
[1725640839835,1.77840259,54090.0,54089.0,0.26234]
[1725640840084,1.44236174,54090.0,54089.0,0.26234]
[1725640840374,1.34236174,54090.0,54089.0,0.47614]
[1725640840616,1.31664859,54090.0,54089.0,0.47614]
[1725640841318,1.31664859,54090.0,54089.0,0.66102]
[1725640841319,0.01450959,54090.0,54089.0,0.66102]
[1725640841536,0.01450959,54090.0,54089.0,0.47614]
[1725640841757,0.554601,54093.0,54092.0,0.4514]
[1725640841977,0.369694,54099.0,54098.0,0.032]
[1725640842210,0.369694,54099.0,54098.0,0.4814]
[1725640842211,0.55454,54099.0,54098.0,0.4814]
[1725640842656,0.554538,54099.0,54098.0,0.4814]
[1725640842887,0.92423,54099.0,54098.0,0.4814]
[1725640843115,1.02423,54099.0,54098.0,0.4814]
[1725640844275,0.31864882,54118.0,54104.0,0.032]
[1725640844532,0.369561,54119.0,54104.0,0.032]
[1725640844533,1.294596,54105.0,54104.0,0.032]
[1725640844758,0.555294,54105.0,54104.0,0.01]
[1725640844983,0.924945,54105.0,54104.0,0.02]
[1725640845222,0.924945,54105.0,54104.0,0.03]
[1725640845464,1.293827,54103.0,54102.0,0.03]
[1725640845906,1.393827,54103.0,54102.0,0.03]
[1725640846128,1.393827,54103.0,54102.0,0.032]
[1725640846798,1.393827,54103.0,54102.0,0.03]
[1725640847702,1.293946,54098.0,54097.0,0.03]
[1725640847936,1.61259482,54098.0,54097.0,0.03]
[1725640848151,2.08229382,54098.0,54097.0,0.03]
[1725640849036,2.08229382,54098.0,54097.0,0.02]
[1725640849249,1.663677,54097.0,54096.0,0.2814]
[1725640849462,1.763677,54097.0,54096.0,0.2794]
[1725640849933,1.763677,54097.0,54096.0,0.2694]
[1725640850219,1.763677,54097.0,54096.0,0.2794]
[1725640850220,1.80944377,54097.0,54096.0,0.2794]
[1725640850428,1.80944377,54097.0,54089.0,0.00164]
[1725640850429,0.924367,54091.0,54090.0,0.2943]
[1725640850637,1.394114,54091.0,54090.0,0.2963]
[1725640852382,1.394114,54091.0,54090.0,0.297936]
[1725640852602,1.42425501,54091.0,54090.0,0.297936]
[1725640853252,1.43146458,54091.0,54090.0,0.297936]
[1725640853474,1.46043716,54091.0,54090.0,0.297936]
[1725640853693,0.56782957,54091.0,54090.0,0.297936]
[1725640853906,0.93757657,54091.0,54090.0,0.297936]
[1725640854131,0.56782957,54091.0,54090.0,0.297936]
[1725640854362,0.93757657,54091.0,54090.0,0.297936]
[1725640854575,1.40732357,54091.0,54090.0,0.275936]
[1725640854791,1.40632357,54091.0,54090.0,0.001636]
[1725640855226,1.77707057,54091.0,54090.0,0.001636]
[1725640855747,1.77607057,54091.0,54090.0,0.001636]
[1725640855981,1.40632357,54091.0,54090.0,0.001636]
[1725640856231,1.40632357,54091.0,54090.0,0.011636]
[1725640856486,1.40632357,54091.0,54090.0,0.013636]
[1725640856814,1.41032357,54091.0,54090.0,0.013636]
[1725640857514,1.41032357,54091.0,54090.0,0.268236]
[1725640857980,1.40632357,54091.0,54090.0,0.268236]
[1725640858226,1.40632357,54091.0,54090.0,0.013636]
[1725640859447,1.40632357,54091.0,54090.0,0.001636]
[1725640859942,1.43529807,54091.0,54090.0,0.003636]
[1725640860175,1.40632357,54091.0,54090.0,0.013636]
[1725640861395,1.40632357,54091.0,54090.0,0.219136]
[1725640861396,1.03657657,54091.0,54090.0,0.219136]
[1725640861624,0.56682957,54091.0,54090.0,0.489636]
[1725640861871,1.30632357,54091.0,54090.0,0.489636]
[1725640862128,1.67607057,54091.0,54090.0,0.001636]
[1725640862341,1.68407057,54091.0,54090.0,0.001636]
[1725640862555,1.68407057,54091.0,54090.0,0.011636]
[1725640862770,1.67607057,54091.0,54090.0,0.011636]
[1725640862990,1.67607057,54091.0,54090.0,0.013636]
[1725640863218,1.77807057,54091.0,54090.0,0.013636]
[1725640863679,1.77607057,54091.0,54090.0,0.013636]
[1725640863900,1.77707057,54091.0,54090.0,0.013636]
[1725640864128,1.77707057,54091.0,54090.0,0.011636]
[1725640864783,1.77707057,54091.0,54090.0,0.001636]
[1725640865223,1.77707057,54091.0,54090.0,0.011636]
[1725640865437,1.77607057,54091.0,54090.0,0.011636]
[1725640865886,1.77607057,54091.0,54090.0,0.013636]
[1725640866337,1.77607057,54091.0,54090.0,0.011636]
[1725640866997,1.77607057,54091.0,54090.0,0.021636]
[1725640866998,1.40632357,54091.0,54090.0,0.021636]
[1725640867226,1.40632357,54091.0,54090.0,0.488036]
[1725640867227,0.01220957,54091.0,54090.0,0.488036]
[1725640867468,0.19708257,54091.0,54090.0,0.488036]
[1725640867689,0.554585,54095.0,54094.0,0.2673]
[1725640867915,0.554585,54095.0,54094.0,0.2973]
[1725640867916,0.924311,54095.0,54094.0,0.2973]
[1725640868136,1.3316036,54095.0,54094.0,0.2953]
[1725640868364,1.7013296,54095.0,54094.0,0.2653]
[1725640868603,0.1849,54083.0,54082.0,0.027426]
[1725640869065,0.1849,54083.0,54079.0,0.01]
[1725640869066,0.184905,54082.0,54079.0,0.01]
[1725640869307,0.0121956,54083.0,54082.0,0.591662]
[1725640869534,0.370751,54091.0,54082.0,0.591662]
[1725640869535,0.184879,54090.0,54084.0,0.03695]
[1725640869756,0.184881,54089.0,54086.0,0.03695]
[1725640870001,0.369757,54090.0,54086.0,0.03695]
[1725640870216,0.1,54094.0,54083.0,0.05541144]
[1725640870217,0.369774,54087.0,54083.0,0.05541144]
[1725640870429,0.369774,54087.0,54080.0,0.01]
[1725640870430,0.184894,54085.0,54084.0,0.03695]
[1725640871067,0.554682,54085.0,54084.0,0.03695]
[1725640871347,0.369774,54087.0,54082.0,0.03695]
[1725640871348,0.554701,54083.0,54082.0,0.03695]
[1725640871569,0.924487,54084.0,54083.0,0.4534]
[1725640871794,1.294282,54084.0,54083.0,0.4534]
[1725640872023,1.32324586,54084.0,54083.0,0.4534]
[1725640872247,0.95345086,54084.0,54083.0,0.4534]
[1725640872466,1.294282,54084.0,54083.0,0.4534]
[1725640873000,1.294282,54084.0,54080.0,0.2598]
[1725640873001,0.1,54084.0,54080.0,0.2598]
[1725640873219,0.554754,54078.0,54077.0,0.4546]
[1725640873442,1.294426,54078.0,54077.0,0.4546]
[1725640875067,0.369821,54081.0,54077.0,0.4546]
[1725640875308,0.554754,54078.0,54077.0,0.4546]
[1725640875529,0.01,54084.0,54077.0,0.1948]
[1725640875749,0.369812,54082.0,54078.0,0.2676]
[1725640875975,0.31864882,54093.0,54079.0,0.00369791]
[1725640876468,0.184887,54087.0,54083.0,0.4525]
[1725640876692,0.36975,54091.0,54085.0,0.2676]
[1725640876901,0.369755,54090.0,54086.0,0.1809]
[1725640877134,0.184887,54087.0,54086.0,0.1809]
[1725640877850,0.924435,54087.0,54086.0,0.4449]
[1725640879200,1.32008203,54087.0,54086.0,0.4449]
[1725640879440,0.184918,54078.0,54077.0,0.00163]
[1725640879676,1.61307482,54078.0,54077.0,0.00163]
[1725640879928,2.08291082,54078.0,54077.0,0.00163]
[1725640880209,1.71307482,54078.0,54077.0,0.00163]
[1725640880439,2.08291082,54078.0,54077.0,0.00163]
[1725640881808,1.394426,54078.0,54077.0,0.00163]
[1725640882023,1.02459,54078.0,54077.0,0.00163]
[1725640882239,1.02459,54078.0,54077.0,0.27783]
[1725640882456,1.405426,54078.0,54077.0,0.27783]
[1725640882681,1.405426,54078.0,54077.0,0.00163]
[1725640882912,1.764262,54078.0,54077.0,0.00163]
[1725640883146,2.510934,54078.0,54077.0,0.00163]
[1725640883385,2.15360288,54078.0,54077.0,0.00163]
[1725640883600,2.20213165,54078.0,54077.0,0.00163]
[1725640883823,1.77676688,54078.0,54077.0,0.00163]
[1725640884043,1.78676688,54078.0,54077.0,0.00163]
[1725640884316,1.78676688,54078.0,54077.0,0.25573]
[1725640884760,1.41693088,54078.0,54077.0,0.25573]
[1725640885417,0.48234088,54078.0,54077.0,0.25573]
[1725640885657,1.03709488,54078.0,54077.0,0.25573]
[1725640885888,1.87933088,54078.0,54077.0,0.00163]
[1725640886111,2.31416093,54078.0,54077.0,0.00163]
[1725640886335,2.67299693,54078.0,54077.0,0.00163]
[1725640886560,2.23816688,54078.0,54077.0,0.00163]
[1725640886812,1.77776688,54078.0,54077.0,0.00163]
[1725640887250,1.77676688,54078.0,54077.0,0.00163]
[1725640888596,1.32093088,54078.0,54077.0,0.27753]
[1725640888815,0.58125888,54078.0,54077.0,0.46793]
[1725640889039,0.95109488,54078.0,54077.0,0.46793]
[1725640889255,1.30693088,54078.0,54077.0,0.46793]
[1725640889505,0.95109488,54078.0,54077.0,0.46793]
[1725640889733,0.58125888,54078.0,54077.0,0.46793]
[1725640889950,1.32093088,54078.0,54077.0,0.46793]
[1725640890160,1.30693088,54078.0,54077.0,0.46793]
[1725640892041,1.30793088,54078.0,54077.0,0.46793]
[1725640892264,0.93809488,54078.0,54077.0,0.46793]
[1725640892702,1.03809488,54078.0,54077.0,0.46793]
[1725640893137,1.03709488,54078.0,54077.0,0.46793]
[1725640893354,1.40693088,54078.0,54077.0,0.46793]
[1725640894044,1.40693088,54078.0,54077.0,0.19203]
[1725640894268,1.40693088,54078.0,54066.0,0.00164]
[1725640894269,0.184955,54067.0,54066.0,0.00164]
[1725640894486,0.924777,54067.0,54066.0,0.00164]
[1725640894712,1.40513809,54067.0,54066.0,0.00164]
[1725640895145,1.82000386,54067.0,54066.0,0.00164]
[1725640896057,1.77504909,54067.0,54066.0,0.00164]
[1725640896533,2.15596009,54067.0,54066.0,0.00164]
[1725640896754,2.15596009,54067.0,54028.0,0.00164]
[1725640896755,0.01,54050.0,54028.0,0.00164]
[1725640896971,0.63729764,54055.0,54028.0,0.00164]
[1725640896972,1.98441782,54029.0,54028.0,0.00164]
[1725640897493,1.72515436,54029.0,54028.0,0.00164]
[1725640897712,0.18515,54010.0,54009.0,0.16393959]
[1725640897937,0.555451,54010.0,54009.0,0.16393959]
[1725640898159,0.01074263,54010.0,54009.0,0.16393959]
[1725640898387,0.19589263,54010.0,54009.0,0.03812778]
[1725640898604,0.370245,54019.0,54006.0,0.02]
[1725640898605,0.380245,54019.0,54006.0,0.02]
[1725640898826,0.01075578,54010.0,54009.0,0.185151]
[1725640899048,0.10163999,54028.0,54009.0,0.185151]
[1725640899049,0.00163999,54028.0,54022.0,0.185108]
[1725640899266,0.00163999,54028.0,54013.0,0.01]
[1725640899267,0.55430836,54026.0,54013.0,0.01]
[1725640899506,0.370185,54027.0,54009.0,0.370306]
[1725640899507,0.0108851,54027.0,54015.0,0.002]
[1725640899731,0.32864882,54019.0,53994.0,0.05535043]
[1725640900014,0.01,54013.0,54001.0,0.00370259]
[1725640900255,0.370305,54010.0,54001.0,0.00370259]
[1725640900468,0.380278,54014.0,54001.0,0.00370287]
[1725640900687,0.01,54013.0,54004.0,0.2597]
[1725640900909,0.12584129,54005.0,54004.0,0.2597]
[1725640901395,0.12584129,54005.0,54000.0,11.90855685]
[1725640901396,0.555544,54001.0,54000.0,11.89655685]
[1725640901625,1.035907,54001.0,54000.0,11.89655685]
[1725640902054,0.285181,54001.0,54000.0,11.89655685]
[1725640902277,0.15484618,54005.0,54000.0,11.89655685]
[1725640902278,0.52518218,54005.0,54000.0,11.89655685]
[1725640902511,0.15484618,54005.0,54000.0,11.89655685]
[1725640902734,0.15484618,54005.0,54004.0,0.1879]
[1725640902951,0.71035018,54005.0,54004.0,0.1879]
[1725640903162,0.15484618,54005.0,54004.0,0.18626001]
[1725640903376,0.15288068,54005.0,54004.0,0.20926001]
[1725640903599,0.15288068,54005.0,54004.0,0.40443101]
[1725640903864,0.12487579,54005.0,54004.0,1.17470991]
[1725640904107,0.12487579,54005.0,54004.0,0.25085491]
[1725640904326,0.12487579,54005.0,54004.0,0.0395949]
[1725640904542,0.12487579,54005.0,54004.0,0.10180722]
[1725640904763,0.185181,54001.0,54000.0,11.89655685]
[1725640904978,0.49521779,54005.0,54000.0,11.89655685]
[1725640905192,0.555544,54001.0,54000.0,11.79071169]
[1725640905420,0.925907,54001.0,54000.0,11.64634401]
[1725640905644,1.30827,54001.0,54000.0,11.48264588]
[1725640905876,2.21541607,54001.0,54000.0,10.96430587]
[1725640906100,2.216833,54001.0,54000.0,10.44866427]
[1725640906323,2.22760128,54001.0,54000.0,10.27367443]
[1725640906548,2.59796428,54001.0,54000.0,9.84321117]
[1725640906767,2.22760128,54001.0,54000.0,9.256113]
[1725640906986,2.22760128,54001.0,54000.0,8.40566935]
[1725640906987,2.22860128,54001.0,54000.0,8.40566935]
[1725640907199,2.22860128,54001.0,54000.0,8.15398677]
[1725640907415,2.22860128,54001.0,54000.0,8.02817381]
[1725640907725,1.85823828,54001.0,54000.0,8.02817381]
[1725640907987,1.85823828,54001.0,54000.0,7.93608187]
[1725640907988,1.29947528,54001.0,54000.0,7.93608187]
[1725640908210,1.04667528,54001.0,54000.0,7.91397254]
[1725640908420,1.04667528,54001.0,54000.0,7.90357254]
[1725640908421,1.03601374,54001.0,54000.0,7.90357254]
[1725640908645,0.935907,54001.0,54000.0,7.90357254]
[1725640908859,1.3998607,54001.0,54000.0,7.67293125]
[1725640909071,1.3998607,54001.0,54000.0,7.42124867]
[1725640909072,2.125633,54001.0,54000.0,7.42124867]
[1725640909318,2.51764103,54001.0,54000.0,7.15169786]
[1725640909539,2.52764103,54001.0,54000.0,6.67730263]
[1725640909761,2.52764103,54001.0,54000.0,6.25164995]
[1725640909762,2.63864103,54001.0,54000.0,6.25164995]
[1725640909969,2.25827803,54001.0,54000.0,4.9993304]
[1725640910214,2.25227803,54001.0,54000.0,4.89348524]
[1725640910428,3.11511077,54001.0,54000.0,4.62137171]
[1725640910656,3.12511077,54001.0,54000.0,4.5286266]
[1725640910874,3.11511077,54001.0,54000.0,4.37966945]
[1725640911085,3.10311077,54001.0,54000.0,4.37966945]
[1725640911299,3.11311077,54001.0,54000.0,4.21278064]
[1725640911538,3.10911077,54001.0,54000.0,4.06387372]
[1725640911749,3.10911077,54001.0,54000.0,3.6291638]
[1725640911985,3.17839068,54001.0,54000.0,3.2041078]
[1725640912217,2.081073,53999.0,53998.0,0.00794834]
[1725640912423,2.081073,53999.0,53962.0,0.0375]
[1725640912424,0.195298,53967.0,53962.0,0.0375]
[1725640912643,0.195298,53967.0,53966.0,0.25862239]
[1725640912644,0.161298,53967.0,53966.0,0.25862239]
[1725640912876,0.161298,53967.0,53966.0,0.72909213]
[1725640912877,0.01046164,53967.0,53966.0,0.72909213]
[1725640913088,0.195266,53977.0,53966.0,0.91099213]
[1725640913310,0.1,53985.0,53966.0,0.91099213]
[1725640913311,0.01,53975.0,53973.0,0.47046974]
[1725640913529,0.19582083,53976.0,53973.0,0.47046974]
[1725640913749,0.01055083,53976.0,53974.0,0.0037052]
[1725640913977,0.01055083,53976.0,53973.0,0.47046974]
[1725640913978,0.185274,53974.0,53973.0,0.47046974]
[1725640914189,0.01,53976.0,53973.0,0.47046974]
[1725640914404,0.1,53985.0,53973.0,0.47046974]
[1725640914405,0.01049969,53974.0,53973.0,0.47046974]
[1725640914635,0.1,53979.0,53973.0,0.47046974]
[1725640914843,0.01049969,53974.0,53973.0,0.47046974]
[1725640915058,0.01049969,53974.0,53973.0,0.74326974]
[1725640915330,0.185233,53986.0,53985.0,0.1882]
[1725640915550,0.002,53999.0,53986.0,0.023]
[1725640915551,0.185229,53987.0,53986.0,0.023]
[1725640915811,0.185229,53987.0,53976.0,0.1862]
[1725640915812,0.92632,53977.0,53976.0,0.1862]
[1725640916043,0.555792,53977.0,53976.0,0.16654955]
[1725640916279,0.19760594,53977.0,53976.0,0.16654955]
[1725640916713,0.01234194,53977.0,53976.0,0.16654955]
[1725640916932,0.185264,53977.0,53976.0,0.16654955]
[1725640917154,0.370498,53982.0,53976.0,0.18954955]
[1725640917372,0.22300166,53977.0,53976.0,0.16654955]
[1725640917582,0.1,53986.0,53976.0,0.16654955]
[1725640917804,0.002,53988.0,53976.0,0.16654955]
[1725640917805,0.56793249,53977.0,53976.0,0.16654955]
[1725640918051,0.93846049,53977.0,53976.0,0.16654955]
[1725640918491,0.01214049,53977.0,53976.0,0.16654955]
[1725640918718,0.185253,53981.0,53976.0,0.16654955]
[1725640918935,0.102,53991.0,53977.0,0.023]
[1725640919204,0.370464,53987.0,53979.0,0.275]
[1725640919413,0.185253,53980.0,53979.0,0.275]
[1725640919638,0.370443,53990.0,53979.0,0.30170482]
[1725640919869,0.002,53998.0,53979.0,0.30170482]
[1725640919870,0.370425,53992.0,53980.0,0.00370418]
[1725640920086,0.370526,53978.0,53972.0,0.1807]
[1725640920308,0.185277,53973.0,53972.0,0.1807]
[1725640920545,0.2505,53996.0,53977.0,0.1945]
[1725640920757,0.47046974,54004.0,53976.0,0.2684]
[1725640920758,0.55430836,53994.0,53984.0,0.2684]
[1725640920983,0.55430836,53994.0,53985.0,0.00370376]
[1725640921213,0.002,54005.0,53985.0,0.19820376]
[1725640921452,0.002,54005.0,53986.0,0.2914]
[1725640921663,0.58011952,54008.0,53986.0,0.2914]
[1725640921664,0.555688,53987.0,53986.0,0.2914]
[1725640921877,0.185229,53987.0,53986.0,0.2914]
[1725640922119,0.47046974,54002.0,53986.0,0.2914]
[1725640922120,0.370358,54002.0,53986.0,0.2914]
[1725640922362,0.02581116,54008.0,53987.0,0.47046974]
[1725640922611,0.55430836,54007.0,53991.0,0.1835]
[1725640922885,0.06896061,54007.0,53992.0,0.02670361]
[1725640923109,0.01033873,54007.0,54001.0,0.01]
[1725640923397,0.2543,54029.0,54015.0,0.185131]